Cogmind - Beta 13 @@@ ROGUE MODE // 2024.03.08 @ 20:22:09 Player: Qwertychrish Result: Destroyed by S-43 Plague with Heavy Machine Gun Performance ------------- Evolutions (9) 4500 Regions Visited (15) 3000 Robots Destroyed (47) 235 Value Destroyed (1835) 1835 Prototype IDs (4) 80 Alien Tech Used (0) 0 Bonus (0) 0 TOTAL SCORE: 9650 Bonus ------- None Cogmind --------- Core Integrity 0/1600 Matter 114/300 Energy 61/100 System Corruption 7% Temperature Cool (0) Movement Core (50) Location -1/Access Parts ------- > --- POWER (3) -------- (None) > --- PROPULSION (8) --- (None) > --- UTILITY (11) ----- Advanced Signal Interpreter Advanced Terrain Scan Processor Improved Melee Analysis Suite Improved System Shield > --- WEAPON (3) ------- (None) > --- INVENTORY (5) ---- Micro Antimatter Reactor Light Quantum Reactor Advanced Reaction Control System Peak State ------------ > --- POWER ------------ Light Antimatter Reactor Micro Antimatter Reactor > --- PROPULSION ------- Xenon Bombardment Thruster Impulse Thruster Field Propulsion Array Electron Diverter Electron Diverter Electron Diverter Electron Diverter > --- UTILITY ---------- Advanced Power Amplifier Experimental Heat Sink Medium Storage Unit Advanced Signal Interpreter Advanced Terrain Scan Processor Improved Melee Analysis Suite Improved Transmission Jammer Advanced ECM Suite Advanced Reaction Control System System Shield Improved System Shield > --- WEAPON ----------- Ripper > --- INVENTORY -------- Micro Antimatter Reactor Micro Antimatter Reactor Light Quantum Reactor Q-thruster Advanced Reaction Control System Enhanced Quantum Rifle Nova Cannon Heavy Pick [Rating: 139] Favorites ----------- Power Light Nuclear Core Engine Ion Engine Power Core Light Nuclear Core Reactor Micro Antimatter Reactor Propulsion Aluminum Leg Treads Light Treads Leg Aluminum Leg Wheel Compact Wheel Hover Unit Improved Gyrokinetic Inverter Flight Unit Electron Diverter Utility Large Storage Unit Device Improved Sensor Array Storage Large Storage Unit Processor Advanced Targeting Computer Hackware Improved System Shield Protection Improved Light Armor Plating Weapon Coil Gun Energy Gun Enhanced Quantum Rifle Energy Cannon Heavy Phase Cannon Ballistic Gun Coil Gun Launcher Heavy Missile Launcher Impact Weapon Heavy Flail Slashing Weapon Ripper Piercing Weapon Heavy Pick Build | -11 -10 -9 -9 -8 -7 -7 -7 -6 -5 -5 -5 -4 -3 -2 -1 ------- Run | Yrd Mat Mat Min Mat Fac Low Low Fac Fac Upp Upp Fac Res Res Acc Slots Evolved 18 | . . 2 . 2 2 . . 2 2 . . 2 2 2 2 Power 2 | . . . . . . . . . . . . 1 . . 1 Propulsion 6 | . . . . 1 . . . 1 2 . . . 1 1 . Utility 9 | . . 2 . 1 2 . . . . . . 1 1 1 1 Weapon 1 | . . . . . . . . 1 . . . . . . . Parts Attached 115 | 6 4 8 1 15 5 1 . 25 8 . 1 12 11 4 14 Power 10 | 1 . . . 1 . . . 2 . . . 1 3 1 1 Engine 1 | 1 . . . . . . . . . . . . . . . Core 4 | . . . . 1 . . . 2 . . . 1 . . . Reactor 5 | . . . . . . . . . . . . . 3 1 1 Propulsion 41 | 2 3 5 . 8 3 . . 6 3 . . 3 2 1 5 Treads 2 | . 1 1 . . . . . . . . . . . . . Leg 17 | . 1 2 . 6 2 . . 6 . . . . . . . Wheel 8 | 2 1 2 . 2 . . . . 1 . . . . . . Hover 1 | . . . . . . . . . . . . 1 . . . Flight 13 | . . . . . 1 . . . 2 . . 2 2 1 5 Utility 41 | 1 1 2 . 4 2 1 . 6 3 . 1 8 5 2 5 Device 24 | . . . . 2 2 . . 4 2 . 1 5 4 1 3 Storage 4 | 1 1 1 . . . . . . . . . 1 . . . Processor 8 | . . 1 . 2 . 1 . . 1 . . . 1 1 1 Hackware 4 | . . . . . . . . 1 . . . 2 . . 1 Protection 1 | . . . . . . . . 1 . . . . . . . Artifact . | . . . . . . . . . . . . . . . . Weapon 23 | 2 . 1 1 2 . . . 11 2 . . . 1 . 3 Energy Gun 1 | . . . . . . . . . . . . . . . 1 Energy Cannon 2 | . . . . . . . . . 1 . . . . . 1 Ballistic Gun 15 | 2 . 1 1 2 . . . 9 . . . . . . . Ballistic Cannon . | . . . . . . . . . . . . . . . . Launcher 2 | . . . . . . . . 2 . . . . . . . Special Weapon . | . . . . . . . . . . . . . . . . Impact Weapon 1 | . . . . . . . . . 1 . . . . . . Slashing Weapon 1 | . . . . . . . . . . . . . 1 . . Piercing Weapon 1 | . . . . . . . . . . . . . . . 1 Special Melee Weapon . | . . . . . . . . . . . . . . . . Unidentified Prototypes 4 | . . . . . 1 . . . . . . . 1 . 2 Parts Lost 52 | . . . . 1 . 1 . 15 4 1 . . 3 5 22 Power 5 | . . . . . . . . 1 . . . . . 1 3 Propulsion 17 | . . . . . . . . 5 1 1 . . . 1 9 Utility 19 | . . . . . . 1 . 4 2 . . . 3 3 6 Weapon 11 | . . . . 1 . . . 5 1 . . . . . 4 Highest Loss Streak 20 | . . . . 1 . 1 . 14 3 4 . . 2 3 20 To Critical Strikes . | . . . . . . . . . . . . . . . . Average Slot Usage (%) 83 | . 85 72 77 94 99 99 100 92 8 11 17 56 75 80 61 Engine 2 | . 14 11 11 3 . . . . . . . . . . . Core 3 | . . . . 5 7 7 7 5 . . . 3 2 . . Reactor 1 | . . . . . . . . . . . . . 5 7 6 Leg 13 | . 2 4 . 12 22 23 23 23 . . . . . . . Wheel 3 | . 18 13 11 12 . . . . 1 . . . . . . Flight 4 | . . . . . . . . . . 5 5 11 22 24 19 Device 16 | . . . . 13 29 29 23 14 1 . 5 22 25 25 14 Storage 6 | . 14 11 11 9 7 7 7 5 . . . 2 4 4 3 Processor 12 | . . 6 11 17 15 15 23 19 3 5 5 5 4 8 9 Hackware 1 | . . . . . . . . 3 . . . 5 4 4 5 Ballistic Gun 13 | . 28 22 22 18 15 15 15 17 . . . . . . . Naked Turns 71 | . . . . . . . . 45 26 . . . . . . Heaviest Build 52 | 13 18 29 29 34 37 37 35 46 10 . 1 30 52 45 43 Greatest Support 62 | 32 32 32 16 37 37 37 37 62 13 13 13 44 60 52 60 Greatest Overweight (x) 3 | 2 1 2 1 1 1 . . 2 3 . . . . . . Average Overweight (x) . | . . . 1 . . . . . . . . . . . . Largest Inventory Capacity 15 | 8 10 15 15 15 15 15 15 15 5 5 5 10 10 10 10 Average Capacity 12 | 7 8 13 15 15 15 15 15 14 5 5 5 7 10 10 9 Most Carried 15 | 6 9 15 15 15 15 15 14 15 5 5 4 10 10 10 9 Average Carried 11 | 3 7 12 15 14 14 14 14 14 4 4 4 5 9 9 6 Final Capacity 15 | 8 10 15 15 15 15 15 15 5 5 5 5 10 10 10 5 Final Carried 15 | 6 9 15 15 15 15 14 14 5 4 5 4 10 10 10 3 Class Distribution -------------------- 30% | Mutant 21% | Scavenger-Skirmisher 16% | Scavenger-Gunner 14% | Scavenger-Mutant 12% | Infiltrator-Sprinter Dominant Class ---------------- Mutant | -10/Materials Mutant | -9/Materials Mutant | -9/Mines Scavenger-Mutant | -8/Materials Scavenger-Skirmisher | -7/Factory Scavenger-Skirmisher | -7/Lower Caves Scavenger-Mutant | -7/Lower Caves Scavenger-Gunner | -6/Factory Mutant | -5/Factory Mutant | -5/Upper Caves Mutant | -5/Upper Caves Infiltrator-Mutant | -4/Factory Infiltrator-Sprinter | -3/Research Infiltrator-Sprinter | -2/Research Infiltrator-Sprinter | -1/Access Resources | -11 -10 -9 -9 -8 -7 -7 -7 -6 -5 -5 -5 -4 -3 -2 -1 ----------- Run | Yrd Mat Mat Min Mat Fac Low Low Fac Fac Upp Upp Fac Res Res Acc Matter Collected 1867 | 219 151 199 . 274 . 250 16 386 135 20 . . 134 . 83 Remotely . | . . . . . . . . . . . . . . . . Salvage Created 1818 | . 208 274 . 319 . 91 . 775 110 . . . 41 . . Parts 99 | . 11 13 . 24 . 3 . 44 . . . . 4 . . Haulers Intercepted 1 | . . . . 1 . . . . . . . . . . . Recyclers Shooed . | . . . . . . . . . . . . . . . . Parts Field Recycled . | . . . . . . . . . . . . . . . . Retrieved Matter . | . . . . . . . . . . . . . . . . Parts Self-Destructed 5 | . . . . . . 3 . . . 2 . . . . . Prevented 1 | . . . . . . 1 . . . . . . . . . Kills | -11 -10 -9 -9 -8 -7 -7 -7 -6 -5 -5 -5 -4 -3 -2 -1 ------- Run | Yrd Mat Mat Min Mat Fac Low Low Fac Fac Upp Upp Fac Res Res Acc Combat Hostiles Destroyed 41 | . 5 5 . 7 . 2 . 17 5 . . . . . . Melee 3 | . . . . . . . . . 3 . . . . . . Guns 33 | . 5 5 . 7 . 2 . 14 . . . . . . . Cannons 1 | . . . . . . . . . 1 . . . . . . AOE 3 | . . . . . . . . 3 . . . . . . . Classes Destroyed 9 | . 1 2 . 3 . 1 . 2 . . . . . . . Builder 1 | . . . . . . . . 1 . . . . . . . Hauler 1 | . . . . 1 . . . . . . . . . . . Recycler 1 | . . 1 . . . . . . . . . . . . . Watcher 3 | . . . . 1 . . . 1 . . . . 1 . . Swarmer 11 | . . . . 3 . . . 3 5 . . . . . . Grunt 17 | . 5 4 . 2 . 1 . 5 . . . . . . . Sentry 7 | . . 1 . 2 . . . 4 . . . . . . . Hunter 2 | . . . . . . 1 . 1 . . . . . . . Programmer 4 | . . . . . . . . 4 . . . . . . . Best Kill Streak 8 | . 3 3 . 3 . 1 . 8 4 . . . 1 . . Combat Bots Only 7 | . 3 2 . 3 . 1 . 7 4 . . . . . . Max Kills in Single Turn 2 | . 1 1 . 1 . 1 . 2 1 . . . 1 . . Gunslinging 1 | . . . . . . . . 1 . . . . . . . Exploded 1 | . . . . . . . . 1 . . . . . . . Melee 1 | . . . . . . . . . 1 . . . . . . Uniques/NPCs Destroyed . | . . . . . . . . . . . . . . . . Combat | -11 -10 -9 -9 -8 -7 -7 -7 -6 -5 -5 -5 -4 -3 -2 -1 -------- Run | Yrd Mat Mat Min Mat Fac Low Low Fac Fac Upp Upp Fac Res Res Acc Hostile Shots Fired 845 | . 24 31 . 31 . 19 . 218 120 24 . 2 22 34 320 Missed 292 | . 7 10 . 6 . 9 . 85 45 16 . . 15 15 84 Damage Taken 8236 | . 188 283 . 341 . 144 . 2115 1160 142 . 46 153 531 3133 Core 3221 | . 45 45 . 61 . . . 543 731 68 . 23 17 72 1616 Absorbed by Shields . | . . . . . . . . . . . . . . . . Core Remaining (%) 80 | 100 82 . 88 88 . . 100 36 . . 20 98 98 95 . Volleys Fired 147 | . 22 25 . 30 . 12 . 43 4 . . . . . 11 Largest 3 | . 2 2 . 2 . 2 . 3 1 . . . . . 1 Hottest 113 | . 40 40 . 46 . 46 . 99 90 . . . . . 113 Shots Fired 297 | . 44 50 . 60 . 24 . 105 4 . . . . . 10 Gun 280 | . 44 50 . 60 . 24 . 96 . . . . . . 6 Cannon 8 | . . . . . . . . . 4 . . . . . 4 Launcher 9 | . . . . . . . . 9 . . . . . . . Special . | . . . . . . . . . . . . . . . . Kinetic 274 | . 44 50 . 60 . 24 . 96 . . . . . . . Thermal 14 | . . . . . . . . . 4 . . . . . 10 Explosive 9 | . . . . . . . . 9 . . . . . . . Electromagnetic . | . . . . . . . . . . . . . . . . Robot Hit Streak 16 | . 14 16 . 14 . 6 . 14 5 . . . . . . Robot Miss Streak 2 | . 2 1 . 1 . 2 . 2 . . . . . . . Penetration Max 1 | . . . . . . . . 1 . . . . . . . Secondary Targets 1 | . . . . . . . . 1 . . . . . . . Max Gunslinging Chain 1 | . . . . . . . . 1 . . . . . . . Shots Hit Robots 221 | . 29 42 . 47 . 17 . 74 11 . . . 1 . . Core Hits 90 | . 11 13 . 18 . 5 . 40 1 . . . 1 . 1 Critical Kills 1 | . . . . . . . . 1 . . . . . . . Critical Parts Destroyed 2 | . . 1 . . . . . 1 . . . . . . . Critical Strikes 3 | . . 1 . . . . . 2 . . . . . . . Destroy 3 | . . 1 . . . . . 2 . . . . . . . Melee Attacks 23 | . . . . . . . . . 12 . . . 2 . 9 Impact 12 | . . . . . . . . . 12 . . . . . . Slashing 3 | . . . . . . . . . . . . . 2 . 1 Piercing 8 | . . . . . . . . . . . . . . . 8 Sneak Attacks . | . . . . . . . . . . . . . . . . Combat Hostiles . | . . . . . . . . . . . . . . . . Follow-up Attacks . | . . . . . . . . . . . . . . . . Damage Inflicted 4754 | . 306 525 . 669 . 208 . 2394 574 . . . 46 . 32 Guns 3344 | . 306 525 . 669 . 208 . 1636 . . . . . . . Cannons 140 | . . . . . . . . . 140 . . . . . . Explosions 758 | . . . . . . . . 758 . . . . . . . Melee 474 | . . . . . . . . . 428 . . . 46 . . Ramming 38 | . . . . . . . . . 6 . . . . . 32 Kinetic 3344 | . 306 525 . 669 . 208 . 1636 . . . . . . . Thermal 140 | . . . . . . . . . 140 . . . . . . Explosive 758 | . . . . . . . . 758 . . . . . . . Electromagnetic . | . . . . . . . . . . . . . . . . Impact 428 | . . . . . . . . . 428 . . . . . . Slashing 46 | . . . . . . . . . . . . . 46 . . Piercing . | . . . . . . . . . . . . . . . . Highest Corruption 7 | . . . . . . . . 5 . . . . . . 7 Average Corruption 3 | . . . . . . . . 2 . . . . . . 5 Corruption Purged . | . . . . . . . . . . . . . . . . Corruption Blocked . | . . . . . . . . . . . . . . . . Effects 17 | . . . . . . . . 10 . . . . . . 7 Message Errors 9 | . . . . . . . . 5 . . . . . . 4 Energy Discharges 5 | . . . . . . . . 4 . . . . . . 1 Data Loss (major) 1 | . . . . . . . . 1 . . . . . . . Alerts 1 | . . . . . . . . . . . . . . . 1 Weapon Failures 1 | . . . . . . . . . . . . . . . 1 Overload Shots . | . . . . . . . . . . . . . . . . Overflow Damage 184 | . . . . . . . . 25 159 . . . . . . Projectiles 10 | . . . . . . . . . 10 . . . . . . Explosions 25 | . . . . . . . . 25 . . . . . . . Melee 149 | . . . . . . . . . 149 . . . . . . Knockbacks 2 | . . . . . . . . . 2 . . . . . . Impact 2 | . . . . . . . . . 2 . . . . . . Kinetic . | . . . . . . . . . . . . . . . . Secondary . | . . . . . . . . . . . . . . . . Self-Inflicted Damage 199 | . . . . . . . . 181 3 . . . . . 15 Shots 4 | . . . . . . . . 4 . . . . . . . Rammed 8 | . . . . . . . . . 1 . . . . . 7 Targets Rammed 8 | . . . . . . . . . 1 . . . . . 7 Kicked . | . . . . . . . . . . . . . . . . Crushed . | . . . . . . . . . . . . . . . . Highest Temperature 370 | . 12 . . 8 . 5 . 95 40 . . . 300 216 370 Average Temperature 111 | . 6 . . 7 . 3 . 28 22 . . . 118 107 158 Received Heat Transfer 957 | . 102 117 . 126 . 18 . 384 81 45 . 9 21 18 36 Effects 4 | . . . . . . . . . . . . . . . 4 Shutdowns 2 | . . . . . . . . . . . . . . . 2 Energy Bleed 1 | . . . . . . . . . . . . . . . 1 Interference 1 | . . . . . . . . . . . . . . . 1 Siege Activations . | . . . . . . . . . . . . . . . . Robots Corrupted . | . . . . . . . . . . . . . . . . Combat Hostiles . | . . . . . . . . . . . . . . . . Parts Fried 3 | . . . . . . . . . 3 . . . . . . Impact Corruptions 6 | . . . . . . . . . 6 . . . . . . Robots Melted . | . . . . . . . . . . . . . . . . Combat Hostiles . | . . . . . . . . . . . . . . . . Parts Melted 2 | . . . . . . . . 1 1 . . . . . . Heat Transferred 148 | . . . . . . . . . 148 . . . . . . Parts Sabotaged . | . . . . . . . . . . . . . . . . Parts Stolen . | . . . . . . . . . . . . . . . . Parts Stripped . | . . . . . . . . . . . . . . . . Power Chain Reactions . | . . . . . . . . . . . . . . . . Alert | -11 -10 -9 -9 -8 -7 -7 -7 -6 -5 -5 -5 -4 -3 -2 -1 ------- Run | Yrd Mat Mat Min Mat Fac Low Low Fac Fac Upp Upp Fac Res Res Acc Peak Influence 433 | . 204 195 75 299 44 . . 433 402 . . 202 336 204 252 Initial 212 | . . 28 75 29 44 . . 14 212 . . 176 105 189 92 Average 136 | . 112 107 75 149 44 . . 121 323 . . 177 226 187 133 Maximum Alert Level 2 | . 1 . . 1 . . . 2 2 . . 1 1 1 1 Low Security (%) 75 | 100 67 100 100 66 100 . . 73 . . . 97 29 96 91 Level 1 24 | . 32 . . 33 . . . 25 98 . . 2 70 3 8 Level 2 . | . . . . . . . . 1 1 . . . . . . Level 3 . | . . . . . . . . . . . . . . . . Level 4 . | . . . . . . . . . . . . . . . . Level 5 . | . . . . . . . . . . . . . . . . High Security . | . . . . . . . . . . . . . . . . Max Security . | . . . . . . . . . . . . . . . . Squads Dispatched 18 | . 3 1 . . . . . 8 2 . . . 2 1 1 Investigation 6 | . 2 . . . . . . 1 2 . . . . 1 . Extermination 3 | . . . . . . . . 2 . . . . . . 1 Reinforcement 6 | . 1 1 . . . . . 2 . . . . 2 . . Assault . | . . . . . . . . . . . . . . . . Garrison 3 | . . . . . . . . 3 . . . . . . . Intercept . | . . . . . . . . . . . . . . . . Searches Triggered . | . . . . . . . . . . . . . . . . Construction Impeded 1 | . . . . . . . . 1 . . . . . . . Haulers Reinforced 1 | . . . . . . . . 1 . . . . . . . Active Scanning Responses . | . . . . . . . . . . . . . . . . Cargo Convoy Interrupts . | . . . . . . . . . . . . . . . . Stealth | -11 -10 -9 -9 -8 -7 -7 -7 -6 -5 -5 -5 -4 -3 -2 -1 --------- Run | Yrd Mat Mat Min Mat Fac Low Low Fac Fac Upp Upp Fac Res Res Acc Distress Signals 6 | . . . . 1 . . . 1 . . . . 1 1 2 Communications Jammed . | . . . . . . . . . . . . . . . . Distress Signals . | . . . . . . . . . . . . . . . . Times Spotted 162 | . 10 7 . 14 . 2 . 26 19 15 . 1 23 10 35 Peak Tracking Total 12 | . 4 3 . 4 . 1 . 6 11 11 . 1 12 7 10 Tactical Retreats 24 | . . . . 1 . . . 4 3 1 . . 6 3 6 Traps | -11 -10 -9 -9 -8 -7 -7 -7 -6 -5 -5 -5 -4 -3 -2 -1 ------- Run | Yrd Mat Mat Min Mat Fac Low Low Fac Fac Upp Upp Fac Res Res Acc Traps Triggered 11 | . 1 . . . . . . 7 . . . . . 1 2 Indirectly . | . . . . . . . . . . . . . . . . Trap Hack Attempts . | . . . . . . . . . . . . . . . . Triggered . | . . . . . . . . . . . . . . . . Disarmed . | . . . . . . . . . . . . . . . . Reprogrammed . | . . . . . . . . . . . . . . . . Reused . | . . . . . . . . . . . . . . . . Traps Extracted . | . . . . . . . . . . . . . . . . Installed . | . . . . . . . . . . . . . . . . Triggered 1 | . . . . . . 1 . . . . . . . . . Machines | -11 -10 -9 -9 -8 -7 -7 -7 -6 -5 -5 -5 -4 -3 -2 -1 ---------- Run | Yrd Mat Mat Min Mat Fac Low Low Fac Fac Upp Upp Fac Res Res Acc Machines Disabled 5 | . . . . . . . . 4 . . . . . . 1 Max in Single Turn 1 | . . . . . . . . 1 . . . . . . 1 Machines Repaired . | . . . . . . . . . . . . . . . . Machines Dismantled . | . . . . . . . . . . . . . . . . Machines Sabotaged . | . . . . . . . . . . . . . . . . Overloaded Fab Kills . | . . . . . . . . . . . . . . . . Hacking | -11 -10 -9 -9 -8 -7 -7 -7 -6 -5 -5 -5 -4 -3 -2 -1 --------- Run | Yrd Mat Mat Min Mat Fac Low Low Fac Fac Upp Upp Fac Res Res Acc Machines Accessed 25 | . 4 1 . 2 . . . 3 2 . . 2 2 5 4 Terminals 22 | . 4 . . 2 . . . 2 2 . . 2 2 5 3 Fabricators . | . . . . . . . . . . . . . . . . Repair Stations . | . . . . . . . . . . . . . . . . Recycling Units . | . . . . . . . . . . . . . . . . Scanalyzers 1 | . . 1 . . . . . . . . . . . . . Garrison Access 2 | . . . . . . . . 1 . . . . . . 1 Total Hacks 60 | . 16 4 . 7 . . . 6 4 . . 5 3 9 6 Successful 26 | . 9 4 . 3 . . . 2 . . . 4 1 3 . Failed 34 | . 7 . . 4 . . . 4 4 . . 1 2 6 6 Catastrophic 12 | . . . . . . . . 1 3 . . . 2 4 2 Database Lockouts . | . . . . . . . . . . . . . . . . Manual 44 | . 15 . . 6 . . . 1 2 . . 5 3 8 4 Terminals 52 | . 16 . . 7 . . . 3 4 . . 5 3 9 5 Fabricators . | . . . . . . . . . . . . . . . . Repair Stations . | . . . . . . . . . . . . . . . . Recycling Units . | . . . . . . . . . . . . . . . . Scanalyzers 4 | . . 4 . . . . . . . . . . . . . Garrison Access 4 | . . . . . . . . 3 . . . . . . 1 Terminal Hacks 5 | . 2 . . 1 . . . 1 . . . . . 1 . Record 2 | . . . . . . . . 1 . . . . . 1 . Robot Analysis 1 | . 1 . . . . . . . . . . . . . . Unreport Threat 1 | . 1 . . . . . . . . . . . . . . Zone Layout 1 | . . . . 1 . . . . . . . . . . . Fabricator Hacks . | . . . . . . . . . . . . . . . . Repair Station Hacks . | . . . . . . . . . . . . . . . . Recycling Unit Hacks . | . . . . . . . . . . . . . . . . Scanalyzer 4 | . . 4 . . . . . . . . . . . . . Insert Component 2 | . . 2 . . . . . . . . . . . . . Analyze 2 | . . 2 . . . . . . . . . . . . . Garrison Access Hacks . | . . . . . . . . . . . . . . . . Unauthorized Hacks 17 | . 7 . . 2 . . . 1 . . . 4 1 2 . Terminals 17 | . 7 . . 2 . . . 1 . . . 4 1 2 . Track 5 | . 2 . . 1 . . . . . . . 2 . . . Assimilate 1 | . 1 . . . . . . . . . . . . . . Botnet 11 | . 4 . . 1 . . . 1 . . . 2 1 2 . Fabricators . | . . . . . . . . . . . . . . . . Repair Stations . | . . . . . . . . . . . . . . . . Recycling Units . | . . . . . . . . . . . . . . . . Scanalyzers . | . . . . . . . . . . . . . . . . Garrison Access . | . . . . . . . . . . . . . . . . Data Cores Recovered . | . . . . . . . . . . . . . . . . Used . | . . . . . . . . . . . . . . . . Hacking Detections 24 | . 4 1 . 2 . . . 3 2 . . 2 2 5 3 Full Trace Events 6 | . 2 1 . . . . . 1 2 . . . . . . Feedback Events . | . . . . . . . . . . . . . . . . Feedback Blocked . | . . . . . . . . . . . . . . . . Robot Schematics Acquired . | . . . . . . . . . . . . . . . . Robots Built . | . . . . . . . . . . . . . . . . Authchips . | . . . . . . . . . . . . . . . . Time . | . . . . . . . . . . . . . . . . Total Robot Build Rating . | . . . . . . . . . . . . . . . . Part Schematics Acquired 1 | . . 1 . . . . . . . . . . . . . Parts Built . | . . . . . . . . . . . . . . . . Authchips . | . . . . . . . . . . . . . . . . Time . | . . . . . . . . . . . . . . . . Total Part Build Rating . | . . . . . . . . . . . . . . . . Parts Repaired . | . . . . . . . . . . . . . . . . Time . | . . . . . . . . . . . . . . . . Parts Recycled . | . . . . . . . . . . . . . . . . Recycled Matter . | . . . . . . . . . . . . . . . . Retrieved Matter . | . . . . . . . . . . . . . . . . Retrieved Components . | . . . . . . . . . . . . . . . . Parts Scanalyzed 2 | . . 2 . . . . . . . . . . . . . Part Schematics Acquired 1 | . . 1 . . . . . . . . . . . . . Parts Damaged . | . . . . . . . . . . . . . . . . Bothacking | -11 -10 -9 -9 -8 -7 -7 -7 -6 -5 -5 -5 -4 -3 -2 -1 ------------ Run | Yrd Mat Mat Min Mat Fac Low Low Fac Fac Upp Upp Fac Res Res Acc Used RIF Installer . | . . . . . . . . . . . . . . . . Robots Hacked . | . . . . . . . . . . . . . . . . Non-combat . | . . . . . . . . . . . . . . . . Combat . | . . . . . . . . . . . . . . . . Robot Hacks Applied . | . . . . . . . . . . . . . . . . Relay Couplers Released 4 | . . . . . . . . 4 . . . . . . . Programmers 4 | . . . . . . . . 4 . . . . . . . Fabnet Peak Effective % . | . . . . . . . . . . . . . . . . Robots Rewired . | . . . . . . . . . . . . . . . . Allies Hacked . | . . . . . . . . . . . . . . . . Hacks Repelled . | . . . . . . . . . . . . . . . . Allies | -11 -10 -9 -9 -8 -7 -7 -7 -6 -5 -5 -5 -4 -3 -2 -1 -------- Run | Yrd Mat Mat Min Mat Fac Low Low Fac Fac Upp Upp Fac Res Res Acc Total Allies . | . . . . . . . . . . . . . . . . Largest Group . | . . . . . . . . . . . . . . . . Highest-Rated Group . | . . . . . . . . . . . . . . . . Highest-Rated Ally . | . . . . . . . . . . . . . . . . Total Orders . | . . . . . . . . . . . . . . . . Ally Attacks . | . . . . . . . . . . . . . . . . Total Damage . | . . . . . . . . . . . . . . . . Kills . | . . . . . . . . . . . . . . . . Allies Corrupted . | . . . . . . . . . . . . . . . . Allies Melted . | . . . . . . . . . . . . . . . . Intel | -11 -10 -9 -9 -8 -7 -7 -7 -6 -5 -5 -5 -4 -3 -2 -1 ------- Run | Yrd Mat Mat Min Mat Fac Low Low Fac Fac Upp Upp Fac Res Res Acc Robot Analysis Total 1 | . 1 . . . . . . . . . . . . . . Derelict Logs Recovered 4 | . . . . . . 2 . . . 2 . . . . . Drone Launches . | . . . . . . . . . . . . . . . . Drone Recoveries . | . . . . . . . . . . . . . . . . Exploration | -11 -10 -9 -9 -8 -7 -7 -7 -6 -5 -5 -5 -4 -3 -2 -1 ------------- Run | Yrd Mat Mat Min Mat Fac Low Low Fac Fac Upp Upp Fac Res Res Acc Turns Passed 4566 | 51 278 346 40 440 366 680 235 969 156 74 27 176 251 199 278 Spaces Moved 5432 | 40 187 163 32 255 279 520 192 623 204 182 64 422 797 651 821 Core 285 | 10 . . . . . . . 91 182 . . . . . 2 Treads 5 | . . 5 . . . . . . . . . . . . . Legs 1630 | . . 34 . 73 279 520 192 532 . . . . . . . Wheels 555 | 30 187 124 32 182 . . . . . . . . . . . Hover . | . . . . . . . . . . . . . . . . Flight 2957 | . . . . . . . . . 22 182 64 422 797 651 819 Fastest Speed 19 | 50 100 100 115 100 123 123 123 50 40 40 40 34 26 25 19 Average Speed 67 | 92 102 132 115 110 124 123 123 119 50 40 40 35 27 25 23 Slowest Speed 260 | 150 115 260 115 123 195 123 123 260 200 45 40 40 34 29 50 Overloaded Moves . | . . . . . . . . . . . . . . . . Propulsion Burnouts . | . . . . . . . . . . . . . . . . Robots Hopped 45 | . . . . . . . . . 2 . . . 12 3 28 Cave-ins Triggered . | . . . . . . . . . . . . . . . . Exploration Rate (%) 23 | 3 29 27 13 26 6 65 20 24 6 44 11 15 29 22 28 Regions Visited 15 Branch Regions 5 Pre-discovered Areas 1 | . . . . . . . . . . 1 . . . . . Known Exits Taken 7 | . . . . . 1 1 1 . . 1 . 1 1 1 . Unknown Exits Taken 8 | 1 1 1 1 1 . . . 1 1 . 1 . . . . Scrap Searched 4 | . . . . . . 1 2 . . 1 . . . . . Spaces Dug . | . . . . . . . . . . . . . . . . Terrain Destroyed 57 | . . . . . . . . 57 . . . . . . . Melee . | . . . . . . . . . . . . . . . . Projectile 5 | . . . . . . . . 5 . . . . . . . AOE 51 | . . . . . . . . 51 . . . . . . . Terrain Rammed . | . . . . . . . . . . . . . . . . Walls Destroyed . | . . . . . . . . . . . . . . . . Machines Disabled . | . . . . . . . . . . . . . . . . Actions | -11 -10 -9 -9 -8 -7 -7 -7 -6 -5 -5 -5 -4 -3 -2 -1 --------- Run | Yrd Mat Mat Min Mat Fac Low Low Fac Fac Upp Upp Fac Res Res Acc Total 5976 | 51 233 243 36 357 305 539 191 760 230 182 64 441 817 679 848 Wait 171 | . 13 34 . 43 . 5 . 44 1 . . . 2 20 9 Move 5336 | 39 186 162 31 254 278 519 191 622 199 181 63 421 775 644 771 Hop 36 | . . . . . . . . . 2 . . . 9 3 22 Pick Up 77 | 6 5 10 2 6 11 1 . 10 1 1 . 7 10 5 2 Fast Attach 51 | 6 1 1 . 5 1 . . 10 6 . . 10 5 1 5 Attach 33 | . . . . 2 2 1 . 7 2 . 1 1 5 3 9 Detach 2 | . . . . . . . . 1 1 . . . . . . Swap 31 | . 3 7 1 8 2 . . 8 . . . 1 1 . . Drop 61 | . 3 4 2 9 11 1 . 15 1 . . 1 8 3 3 Fire 147 | . 22 25 . 30 . 12 . 43 4 . . . . . 11 Melee 23 | . . . . . . . . . 12 . . . 2 . 9 Ram 8 | . . . . . . . . . 1 . . . . . 7 Kick . | . . . . . . . . . . . . . . . . Crush . | . . . . . . . . . . . . . . . . Escape Stasis . | . . . . . . . . . . . . . . . . Rewire . | . . . . . . . . . . . . . . . . Trap . | . . . . . . . . . . . . . . . . Miscellaneous . | . . . . . . . . . . . . . . . . Route ------- -11/Scrapyard -10/Materials -9/Materials -9/Mines -8/Materials -7/Factory -7/Lower Caves -7/Lower Caves -6/Factory -5/Factory -5/Upper Caves -5/Upper Caves -4/Factory -3/Research -2/Research -1/Access History --------- Turn | Location | Event 21 | -11/Scrapyard | Discovered new exit (range 15) 52 | -11/Scrapyard | Entered Materials 236 | -10/Materials | Discovered new exit (range 10) 314 | -10/Materials | Build established: Mutant 330 | -10/Materials | Entered another Materials area 330 | -9/Materials | Evolved 2 slots: Utility x2 653 | -9/Materials | Discovered new exit (range 5) 676 | -9/Materials | Entered Mines 701 | -9/Mines | Discovered new exit (range 8) 708 | -9/Mines | Received a Rocket Launcher from a helpful Derelict 716 | -9/Mines | Entered Materials 716 | -8/Materials | Evolved 2 slots: Propulsion x1, Utility x1 944 | -8/Materials | Discovered new exit (range 17) 1156 | -8/Materials | Entered Factory 1156 | -7/Factory | Evolved 2 slots: Utility x2 1282 | -7/Factory | Discovered new exit (range 15) 1462 | -7/Factory | Identified exit to Lower Caves 1491 | -7/Factory | Build established: Scavenger-Skirmisher 1522 | -7/Factory | Entered Lower Caves 1663 | -7/Lower Caves | Learned Factory non-interactive machine intel 1982 | -7/Lower Caves | Identified exit to Lower Caves 2034 | -7/Lower Caves | Encountered a Warlord checkpoint 2202 | -7/Lower Caves | Entered another Lower Caves area 2210 | -7/Lower Caves | Discovered new exit (range 14) 2226 | -7/Lower Caves | Identified exit to Factory 2437 | -7/Lower Caves | Entered Factory 2437 | -6/Factory | Evolved 2 slots: Propulsion x1, Weapon x1 2438 | -6/Factory | Loaded intel: 188 non-interactive machine locations 2473 | -6/Factory | Build established: Scavenger-Mutant 2816 | -6/Factory | Build established: Scavenger-Gunner 3358 | -6/Factory | Destroyed 7 combat bots 3361 | -6/Factory | Released all parts (7) 3384 | -6/Factory | Lost 14 parts (1p4n4u5w) 3391 | -6/Factory | Core integrity fell below 50% 3399 | -6/Factory | Discovered new exit (range 16) 3406 | -6/Factory | Entered another Factory area 3406 | -5/Factory | Evolved 2 slots: Propulsion x2 3514 | -5/Factory | Core integrity fell below 50% 3554 | -5/Factory | Discovered new exit (range 16) 3562 | -5/Factory | Entered Upper Caves 3578 | -5/Upper Caves | Attracted the attention of an 0b10 checkpoint 3594 | -5/Upper Caves | Lost 4 parts (2n2u) 3595 | -5/Upper Caves | Encountered a Warlord checkpoint 3604 | -5/Upper Caves | Identified exit to Upper Caves 3606 | -5/Upper Caves | Learned location of Armory (-3) 3619 | -5/Upper Caves | Spotted B-75 Beast 3625 | -5/Upper Caves | Attracted the attention of an 0b10 outpost 3634 | -5/Upper Caves | Build established: Mutant 3636 | -5/Upper Caves | Entered another Upper Caves area 3658 | -5/Upper Caves | Discovered new exit (range 10) 3663 | -5/Upper Caves | Entered Factory 3663 | -4/Factory | Evolved 2 slots: Power x1, Utility x1 3834 | -4/Factory | Discovered new exit (range 11) 3839 | -4/Factory | Identified exit to Research 3839 | -4/Factory | Entered Research 3839 | -3/Research | Evolved 2 slots: Propulsion x1, Utility x1 4025 | -3/Research | Spotted B-86 Titan 4036 | -3/Research | Discovered new exit (range 15) 4041 | -3/Research | Identified exit to Research 4090 | -3/Research | Entered another Research area 4090 | -2/Research | Evolved 2 slots: Propulsion x1, Utility x1 4150 | -2/Research | Build established: Infiltrator-Sprinter 4198 | -2/Research | Spotted B-90 Cyclops 4287 | -2/Research | Discovered new exit (range 10) 4289 | -2/Research | Identified exit to Access 4289 | -2/Research | Spotted B-90 Cyclops 4289 | -2/Research | Entered Access 4289 | -1/Access | Evolved 2 slots: Power x1, Utility x1 4322 | -1/Access | Spotted B-99 Colossus 4345 | -1/Access | Lost 5 parts (1n4u) 4473 | -1/Access | Spotted B-99 Colossus 4497 | -1/Access | Spotted B-99 Colossus 4503 | -1/Access | Spotted B-99 Colossus 4516 | -1/Access | Core integrity fell below 50% 4560 | -1/Access | Core integrity fell below 20% 4567 | -1/Access | Destroyed by S-43 Plague with Heavy Machine Gun Last Messages --------------- 04540_ Hvy. Pick destroyed. 04545_ System corrupted: Enh. Quantum Rifle failed to cycle. 04549_ Slug penetrates Sealed Heavy Doors. 04558_ Enh. Quantum Rifle destroyed. 04559_ Slug penetrates Sealed Heavy Doors. 04560_ Slammed into S-43 Plague. 04561_ Slug penetrates Sealed Heavy Doors. 04561_ Slug penetrates S-43 Plague. 04561_ Slug penetrates Sealed Heavy Doors. 04561_ Slug penetrates S-43 Plague. 04561_ Slug penetrates Sealed Heavy Doors. 04561_ Slug penetrates S-43 Plague. 04561_ Slammed into S-43 Plague. 04562_ Destabilizing: System interference. 04562_ Adv. Signal Interpreter temporarily disabled. 04563_ Slammed into S-43 Plague. 04563_ Destabilizing: System interference. 04563_ Imp. Melee Analysis Suite temporarily disabled. 04564_ Slug penetrates Sealed Heavy Doors. 04564_ Slammed into S-43 Plague. Map ----- +----------------------------------------------------+ | ??????????????????????????????????# # | | ??????????????????????????????????# # """"" | | ??????????????????????????????????# # """T"" | | ??????????????????????????????????# # "" | | ??????????????????????????????????# # | | ??????????????????????????????????# + | | ??????????????????????????????????+ # | | ??????????????????????????????????# # | | ??????????????????????????????????# # | | ????????????????????############### # | | ????????????????????# # | | ????????????????????# ######+#### | | ????????????????????# #????# #??? | | ????????????????????# ! #????# #??? | | ????????????????????# ##########+## ######+#### | | ????????????????????# %%p#??##???????# ## | | ?????????????????#### % #####???????# ## | | ?????????????????# #????????# ## ] | | ?????????????????# #????????# ##" | | ?????????????????# #????????# ##" """""" | | ?????????????????# %% #????????# ##" """""" | | ?????????????????# BB BB #????????# ##T """""" | | ?????????????????# B%!%BB #????????# ##" """""" | | ?????????????????# sss #????????# #" """""" | | ?????????????????#""""""ss""#????????# #" | | ???????????????????????""@""?????????# # | | ????????????????????????""s"?????????# + | | ?????????????????????????"""??#####??# ########## | | ??????????????????????????????# =??# #???????# | | ??????????????????????????????# ?# #???????# | | ??????????????????????????????#" ?# #???????# | | ??????????????????????????????#" # #???????# | | ??????????????????????????????#" # #???????# | | ??????????????????????????????#T + #???????# | | ??????????????????????????????#" # #???????# | | ??????????????????????????????#" # #???????# | | ??????????????????????????????#" ?# #???????# | | ??????????????????????????????# ?# #???????? | | ??????????????????????????????# ??# #????????? | | ??????????????????????????????#!! ??# #????????? | | ??????????????????????????????#!! ???# ########## | | ??????????????????????????????####???# ## | | ?????????????????????????????????????# ## | | ????????????????????????????????????## ## | | ?????????????????????????????????#### # | | ?????????????????????????? " | | ????????????????????????? + | | ??????????????????????????########### # | | ????????????????????????????????????###### | | ?????????????????????????????????????????# | +----------------------------------------------------+ Best States ------------- Heat Dissipation 52 Energy Generation 44 Energy Capacity 555 Matter Stores 300 Matter Capacity 300 Sight Range 16 Robot Scan Range 15 Terrain Scan Range 24 Terrain Scan Density 210 ECM Strength 2 Power Amplification 30 Additional Mass Support 9 Armor Coverage 150 Evasion (%) 77 Targeting Accuracy 28 Melee Accuracy 6 Armor Integrity Analysis 30 Recoil Reduction 1 Matter Filtering 30 Offensive Hacking 12 Defensive Hacking 22 Item Schematics ----------------- Med. Storage Unit | -9/Materials | Scanalyzed Robot Schematics ------------------ None Fabricated ------------ Nothing Alien Tech Used ----------------- None Achievements -------------- Streaker Challenges ------------ None Game ------ Seed LightScrapSplitter Manual? 0 Play Time 01:48:07 Cumulative 50.5 hours Start 2024.03.08 @ 14:27:26 End 2024.03.08 @ 20:22:09 Sessions 4 Manual Loads 0 Difficulty Rogue Special Mode None Game No. 46 Rogue 46 Adventurer 0 Explorer 0 Win Type - Total 0 Types 0/0/0/0/0/0/0/0/0 Lore% 26 Gallery% 40 Achievement% 31 Wizard Run 0 Options --------- Layout 0 ASCII 0 Keyboard 0 Movement Numpad Keybinds 0 Fullscreen 1 Font 18/SmallcapsGlow Map View 76x50 Zoom Use 0% Tactical HUD 1 Map Filters NONE Filters NONE Steam X RUN: 0d1be394-5aac-4e8a-ab68-1ecabdaaf3a5